Workbook

Sheet README
A1: Instructions
A2: User must have Solver enabled (File>Options>Add-Ins>Manage)
A3: User must have macros enabled to use the "SOLVE" button. Otherwise, user can use Data>Solver.
A5: Calculate LDES SOC tab
A6: User can configure values in blue cells
A7: Do not touch values in gray cells
A8: When user hits "SOLVE" on row 32-33, optimization chooses values in orange cells
A9: J28:J30 will list the SOC value each LDES Resource carries into the worst-day
A11: Duration Lookback Table tab
A12: Table designating the number of days prior to the worst-day that LDES Resources of varying durations are eligible to store energy from.
A13: Supports calculations in Calculate LDES SOC tab B12:I14.

Sheet Calculate LDES SOC
A1: Resource Limitations
A3: Resource Specifications
A4: Resource (r) | B4: Pmin | C4: SOCmax | D4: RTE | E4: Duration | F4: ISOC
A5: R1 | B5: -10 | C5: 720 | D5: 0.6 | E5: 72 | F5: =0.5*C5 -> 360
A6: R2 | B6: -15 | C6: 360 | D6: 0.5 | E6: 24 | F6: =0.5*C6 -> 180
A7: R3 | B7: -20 | C7: 240 | D7: 0.9 | E7: 12 | F7: 120
A9: Daily Maximum Stored Energy Limit (MSEd,r)
B10: Day Prior (d=8..d=1)
A11: Resource (r) | B11: 8 | C11: 7 | D11: 6 | E11: 5 | F11: 4 | G11: 3 | H11: 2 | I11: 1
A12: R1 | B12: =MIN(IF(VLOOKUP($E5,'Duration Lookback Table'!$A:$C,3,TRUE)>=B$11,$C5,0),-1*$B5*24) -> 240 | C12: =MIN(IF(VLOOKUP($E5,'Duration Lookback Table'!$A:$C,3,TRUE)>=C$11,$C5,0),-1*$B5*24) -> 240 | D12: =MIN(IF(VLOOKUP($E5,'Duration Lookback Table'!$A:$C,3,TRUE)>=D$11,$C5,0),-1*$B5*24) -> 240 | E12: =MIN(IF(VLOOKUP($E5,'Duration Lookback Table'!$A:$C,3,TRUE)>=E$11,$C5,0),-1*$B5*24) -> 240 | F12: =MIN(IF(VLOOKUP($E5,'Duration Lookback Table'!$A:$C,3,TRUE)>=F$11,$C5,0),-1*$B5*24) -> 240 | G12: =MIN(IF(VLOOKUP($E5,'Duration Lookback Table'!$A:$C,3,TRUE)>=G$11,$C5,0),-1*$B5*24) -> 240 | H12: =MIN(IF(VLOOKUP($E5,'Duration Lookback Table'!$A:$C,3,TRUE)>=H$11,$C5,0),-1*$B5*24) -> 240 | I12: =MIN(IF(VLOOKUP($E5,'Duration Lookback Table'!$A:$C,3,TRUE)>=I$11,$C5,0),-1*$B5*24) -> 240
A13: R2 | B13: =MIN(IF(VLOOKUP($E6,'Duration Lookback Table'!$A:$C,3,TRUE)>=B$11,$C6,0),-1*$B6*24) -> 0 | C13: =MIN(IF(VLOOKUP($E6,'Duration Lookback Table'!$A:$C,3,TRUE)>=C$11,$C6,0),-1*$B6*24) -> 0 | D13: =MIN(IF(VLOOKUP($E6,'Duration Lookback Table'!$A:$C,3,TRUE)>=D$11,$C6,0),-1*$B6*24) -> 360 | E13: =MIN(IF(VLOOKUP($E6,'Duration Lookback Table'!$A:$C,3,TRUE)>=E$11,$C6,0),-1*$B6*24) -> 360 | F13: =MIN(IF(VLOOKUP($E6,'Duration Lookback Table'!$A:$C,3,TRUE)>=F$11,$C6,0),-1*$B6*24) -> 360 | G13: =MIN(IF(VLOOKUP($E6,'Duration Lookback Table'!$A:$C,3,TRUE)>=G$11,$C6,0),-1*$B6*24) -> 360 | H13: =MIN(IF(VLOOKUP($E6,'Duration Lookback Table'!$A:$C,3,TRUE)>=H$11,$C6,0),-1*$B6*24) -> 360 | I13: =MIN(IF(VLOOKUP($E6,'Duration Lookback Table'!$A:$C,3,TRUE)>=I$11,$C6,0),-1*$B6*24) -> 360
A14: R3 | B14: =MIN(IF(VLOOKUP($E7,'Duration Lookback Table'!$A:$C,3,TRUE)>=B$11,$C7,0),-1*$B7*24) -> 0 | C14: =MIN(IF(VLOOKUP($E7,'Duration Lookback Table'!$A:$C,3,TRUE)>=C$11,$C7,0),-1*$B7*24) -> 0 | D14: =MIN(IF(VLOOKUP($E7,'Duration Lookback Table'!$A:$C,3,TRUE)>=D$11,$C7,0),-1*$B7*24) -> 0 | E14: =MIN(IF(VLOOKUP($E7,'Duration Lookback Table'!$A:$C,3,TRUE)>=E$11,$C7,0),-1*$B7*24) -> 0 | F14: =MIN(IF(VLOOKUP($E7,'Duration Lookback Table'!$A:$C,3,TRUE)>=F$11,$C7,0),-1*$B7*24) -> 0 | G14: =MIN(IF(VLOOKUP($E7,'Duration Lookback Table'!$A:$C,3,TRUE)>=G$11,$C7,0),-1*$B7*24) -> 240 | H14: =MIN(IF(VLOOKUP($E7,'Duration Lookback Table'!$A:$C,3,TRUE)>=H$11,$C7,0),-1*$B7*24) -> 240 | I14: =MIN(IF(VLOOKUP($E7,'Duration Lookback Table'!$A:$C,3,TRUE)>=I$11,$C7,0),-1*$B7*24) -> 240
A16: Portfolio Limitations
B18: Day Prior (d=8..d=1)
B19: 8 | C19: 7 | D19: 6 | E19: 5 | F19: 4 | G19: 3 | H19: 2 | I19: 1
A20: Excess Energy Limit (EEd) | B20: 200 | C20: 150 | D20: 125 | E20: 100 | F20: 100 | G20: 75 | H20: 50 | I20: 40 | J20: <<user entered values (or pre-calculated based on difference between Load Forecast and non-storage RA supply)
A21: LDES Consumed Energy | B21: =SUMPRODUCT(B28:B30/$D$5:$D$7) -> 200 | C21: =SUMPRODUCT(C28:C30/$D$5:$D$7) -> 150 | D21: =SUMPRODUCT(D28:D30/$D$5:$D$7) -> 125 | E21: =SUMPRODUCT(E28:E30/$D$5:$D$7) -> 100 | F21: =SUMPRODUCT(F28:F30/$D$5:$D$7) -> 100 | G21: =SUMPRODUCT(G28:G30/$D$5:$D$7) -> 75 | H21: =SUMPRODUCT(H28:H30/$D$5:$D$7) -> 50 | I21: =SUMPRODUCT(I28:I30/$D$5:$D$7) -> 40
A23: Daily Stored Energy Optimization
A25: Resource Daily Stored Energy (SEd,r)
B26: Day Prior (d=8..d=1)
A27: Resource (r) | B27: 8 | C27: 7 | D27: 6 | E27: 5 | F27: 4 | G27: 3 | H27: 2 | I27: 1 | J27: LDES SOD SOC
A28: R1 | B28: 120 | C28: 90 | D28: 75 | E28: 60 | F28: 15 | G28: 0 | H28: 0 | I28: 0 | J28: =F5+SUM(B28:I28) -> 720 | L28: R1 carries this SOC into the worst-day
A29: R2 | B29: 0 | C29: 0 | D29: 0 | E29: 0 | F29: 37.5 | G29: 0 | H29: 0 | I29: 15.83333333 | J29: =F6+SUM(B29:I29) -> 233.3333333 | L29: R2 carries this SOC into the worst-day
A30: R3 | B30: 0 | C30: 0 | D30: 0 | E30: 0 | F30: 0 | G30: 67.5 | H30: 45 | I30: 7.5 | J30: =F7+SUM(B30:I30) -> 240 | L30: R3 carries this SOC into the worst-day
I31: Objective (max): | J31: =SUM(J28:J30) -> 1193.333333

Sheet Duration Lookback Table
A1: Storage Duration (from) | B1: Storage Duration (to) | C1: # of Lookback Days
A2: 8 | B2: 12 | C2: 2
A3: 12 | B3: 16 | C3: 3
A4: 16 | B4: 20 | C4: 4
A5: 20 | B5: 24 | C5: 5
A6: 24 | B6: 48 | C6: 6
A7: 48 | B7: 72 | C7: 7
A8: 72 | B8: 200 | C8: 8
